bitfinex-derivatives/quotes_SOLF0:USTF0_20250425
["timestamp","ask_amount","ask_price","bid_price","bid_amount"]
[1745613805059,24.44,152.04,151.99,17.41911562]
[1745613805559,24.44,152.04,152.02,6.5722]
[1745613805760,24.44,152.04,151.99,17.41911562]
[1745613807259,24.44,152.04,152.03,6.5722]
[1745613807462,31.0119,152.04,151.97,17.41911562]
[1745613808163,6.5723,152.03,151.97,17.41911562]
[1745613808663,6.5723,152.03,152.0,6.5731]
[1745613808963,6.5723,152.03,151.97,17.41911562]
[1745613809355,31.012,152.04,151.97,17.41911562]
[1745613809561,31.012,152.04,152.01,6.5728]
[1745613809863,31.012,152.04,151.97,17.41911562]
[1745613810463,24.44,152.04,152.02,6.5724]
[1745613811064,31.0118,152.04,152.01,6.5729]
[1745613811265,24.44,152.04,152.01,6.5729]
[1745613811465,24.44,152.04,151.97,17.41911562]
[1745613811964,28.2597,152.04,151.97,17.41911562]
[1745613813065,34.8317,152.04,152.01,6.573]
[1745613814162,28.2597,152.04,151.99,6.5736]
[1745613814368,45.67881562,152.04,151.99,6.5736]
[1745613814768,45.67881562,152.04,152.0,6.5734]
[1745613815267,28.2597,152.04,152.01,6.573]
[1745613816169,34.8317,152.04,152.01,6.573]
[1745613816370,28.2597,152.04,151.97,17.41911562]
[1745613816869,6.5729,152.02,151.99,6.5737]
[1745613817062,6.5729,152.02,151.93,13.1524]
[1745613817262,17.41911562,152.0,151.91,17.41911562]
[1745613817468,31.034,151.99,151.91,17.41911562]
[1745613818069,31.034,151.99,151.93,17.41911562]
[1745613818369,24.46,151.99,151.93,17.41911562]
[1745613818870,31.0342,151.99,151.93,17.41911562]
[1745613819477,6.5744,151.98,151.96,6.575]
[1745613819671,24.46,151.99,151.93,17.41911562]
[1745613819971,6.575,151.97,151.95,6.5756]
[1745613820271,24.46,151.99,151.91,17.41911562]
[1745613820464,6.5746,151.98,151.91,17.41911562]
[1745613820668,24.46,151.99,151.93,17.41911562]
[1745613823272,31.034,151.99,151.97,6.5745]
[1745613824073,24.46,151.99,151.97,6.5745]
[1745613824274,24.46,151.99,151.98,6.5744]
[1745613829274,24.46,151.99,151.97,6.5747]
[1745613829477,24.46,151.99,151.93,17.41911562]
[1745613829874,31.0342,151.99,151.93,17.41911562]
[1745613830175,24.46,151.99,151.93,17.41911562]
[1745613830374,24.46,151.99,151.95,17.41911562]
[1745613830576,24.46,151.99,151.98,6.5744]
[1745613832077,24.46,151.99,151.97,6.5746]
[1745613832278,24.46,151.99,151.93,25.16311562]
[1745613834182,24.46,151.99,151.98,6.5744]
[1745613835380,3.8197,152.04,151.95,17.41911562]
[1745613835585,3.8197,152.04,151.94,13.152]
[1745613835586,24.36,152.03,151.97,17.41911562]
[1745613836284,24.36,152.03,152.02,6.5724]
[1745613836584,24.36,152.03,151.97,17.41911562]
[1745613836888,30.9325,152.03,152.0,6.5732]
[1745613837486,6.5727,152.02,152.0,6.5732]
[1745613837788,6.5727,152.02,151.99,6.5737]
[1745613838184,6.5731,152.01,151.95,17.41911562]
[1745613838384,6.5731,152.01,151.98,6.5742]
[1745613838686,24.36,152.03,151.93,29.26111562]
[1745613838886,6.5738,152.0,151.93,29.26111562]
[1745613839086,24.36,151.99,151.93,29.26111562]
[1745613839788,24.36,151.99,151.97,6.5745]
[1745613839984,24.36,151.99,151.93,29.26111562]
[1745613840289,24.36,151.99,151.93,25.16311562]
[1745613840688,30.9342,151.99,151.93,25.16311562]
[1745613840883,24.36,151.99,151.93,25.16311562]
[1745613842291,24.36,151.99,151.98,6.5744]
[1745613845491,24.36,151.99,151.97,6.5745]
[1745613845784,24.36,151.99,151.95,10.73123296]
[1745613847083,24.36,151.99,151.93,7.744]
[1745613847287,35.09123296,151.99,151.94,10.73123296]
[1745613847488,10.73123296,151.98,151.93,10.73123296]
[1745613847692,17.30633296,151.97,151.93,10.73123296]
[1745613847890,10.73123296,151.97,151.93,10.73123296]
[1745613848290,6.5752,151.96,151.94,6.5758]
[1745613848890,17.30643296,151.96,151.93,6.5764]
[1745613849188,35.09123296,151.95,151.9,10.73123296]
[1745613849489,30.9363,151.94,151.91,6.5771]
[1745613849891,30.9363,151.94,151.9,10.73123296]
[1745613849892,41.66753296,151.94,151.92,6.5769]
[1745613851092,35.09123296,151.94,151.93,6.5765]
[1745613851287,24.36,151.94,151.93,6.5765]
[1745613855998,35.09123296,151.94,151.87,24.36]
[1745613856198,10.73123296,151.9,151.85,10.73123296]
[1745613856397,10.73123296,151.9,151.84,24.38]
[1745613856398,10.73123296,151.89,151.82,27.643]
[1745613856697,10.73123296,151.85,151.79,24.38]
[1745613856897,10.73123296,151.85,151.78,3.8856]
[1745613856898,10.73123296,151.84,151.8,10.73123296]
[1745613857098,10.73123296,151.84,151.81,6.5814]
[1745613857294,10.73123296,151.84,151.76,32.2793]
[1745613857499,10.73123296,151.84,151.79,10.73123296]
[1745613857700,10.73123296,151.84,151.82,6.5812]
[1745613858200,10.73123296,151.84,151.83,6.5809]
[1745613859303,10.75170832,151.85,151.84,6.5804]
[1745613859803,3.9659,151.88,151.83,10.75170832]
[1745613860002,28.3459,151.88,151.85,10.75170832]
[1745613860204,39.09760832,151.88,151.76,32.2793]
[1745613860405,39.09760832,151.88,151.86,6.5792]
[1745613860602,39.09760832,151.88,151.84,10.75170832]
[1745613860806,28.3459,151.88,151.81,17.46476836]
[1745613861404,28.3459,151.88,151.87,6.5791]
[1745613861605,24.38,151.88,151.87,6.5791]
[1745613869815,24.38,151.88,151.8,24.38]
[1745613870013,24.38,151.88,151.8,17.46476836]
[1745613871112,30.9589,151.88,151.8,17.46476836]
[1745613871415,24.38,151.88,151.84,6.5802]
[1745613871613,21.33276836,151.87,151.74,37.5495]
[1745613871915,24.38,151.88,151.85,6.5797]
[1745613872307,24.38,151.88,151.81,17.46476836]
[1745613872706,24.38,151.88,151.8,17.46476836]
[1745613872911,24.38,151.88,151.77,13.1662]
[1745613873114,17.46476836,151.87,151.78,17.46476836]
[1745613873311,24.38,151.88,151.8,17.46476836]
[1745613873511,24.38,151.88,151.86,6.5793]
[1745613873912,30.959,151.88,151.77,13.1662]
[1745613874212,24.38,151.88,151.79,17.46476836]
[1745613874515,6.5793,151.87,151.84,6.5802]
[1745613875109,6.5793,151.87,151.77,13.1662]
[1745613875316,17.46476836,151.83,151.73,17.46476836]
[1745613875514,24.38,151.82,151.75,17.46476836]
[1745613875708,24.38,151.82,151.79,6.5822]
[1745613876313,30.9613,151.82,151.78,6.5829]
[1745613877214,24.38,151.82,151.71,24.38]
[1745613877515,24.38,151.82,151.75,17.46476836]
[1745613877711,24.38,151.82,151.78,6.5827]
[1745613877912,24.38,151.82,151.75,17.46476836]
[1745613878309,30.9616,151.82,151.78,6.5828]
[1745613879314,30.9616,151.82,151.77,6.5833]
[1745613879315,24.38,151.82,151.77,6.5833]
[1745613879817,6.5819,151.81,151.73,4.0777]
[1745613880415,6.5819,151.81,151.77,6.583]
[1745613880814,6.5819,151.81,151.72,17.46476836]
[1745613881015,6.5822,151.8,151.77,6.5832]
[1745613881719,24.38,151.82,151.74,17.46476836]
[1745613881720,6.5818,151.81,151.74,17.46476836]
[1745613881911,24.38,151.82,151.72,7.855]
[1745613882110,24.38,151.82,151.74,17.46476836]
[1745613882714,6.5825,151.8,151.77,6.5832]
[1745613882915,24.38,151.82,151.72,25.31976836]
[1745613883418,10.76054037,151.79,151.77,6.5834]
[1745613883618,24.4,151.78,151.77,6.5834]
[1745613886019,24.4,151.78,151.77,17.34394037]
[1745613886619,24.4,151.78,151.77,6.5834]
[1745613887215,24.4,151.78,151.76,17.34434037]
[1745613887417,10.76054037,151.77,151.71,10.76054037]
[1745613887614,10.76054037,151.75,151.71,10.76054037]
[1745613887812,24.4,151.74,151.72,6.5853]
[1745613889120,24.4,151.74,151.73,6.5852]
[1745613890419,24.38,151.77,151.76,6.5838]
[1745613895927,24.38,151.77,151.75,6.5842]
[1745613896127,24.38,151.77,151.69,29.91683215]
[1745613896525,6.5846,151.75,151.72,6.5854]
[1745613897028,6.5849,151.74,151.71,6.5859]
[1745613897228,24.4,151.73,151.71,6.5859]
[1745613897429,24.4,151.73,151.69,4.1235]
[1745613897625,24.4,151.73,151.67,0.24214]
[1745613898028,24.4,151.73,151.69,6.5869]
[1745613898622,24.4,151.73,151.68,6.5872]
[1745613898926,24.4,151.73,151.67,0.24214]
[1745613899130,30.9854,151.73,151.69,6.5867]
[1745613900230,24.4,151.73,151.71,6.586]
[1745613900430,474.18,151.77,151.69,17.48453215]
[1745613900626,24.4,151.76,151.69,17.48453215]
[1745613900831,24.4,151.76,151.71,17.48453215]
[1745613901526,24.4,151.76,151.75,6.5843]
[1745613901725,474.18,151.77,151.73,17.48453215]
[1745613901931,24.4,151.79,151.75,17.48453215]
[1745613902132,24.4,151.79,151.78,6.583]
[1745613902825,474.26,151.84,151.79,6.5822]
[1745613903031,24.4,151.82,151.77,17.48453215]
[1745613903929,474.26,151.84,151.8,6.5819]
[1745613904234,24.4,151.84,151.79,17.48453215]
[1745613905239,24.4,151.84,151.76,17.48453215]
[1745613906241,24.4,151.84,151.81,6.5814]
[1745613906431,24.4,151.84,151.76,17.48453215]
[1745613907641,24.4,151.84,151.83,17.48453215]
[1745613907839,24.4,151.87,151.83,17.48453215]
[1745613908335,474.18,151.98,151.85,17.48453215]
[1745613908640,17.48453215,151.96,151.87,17.48453215]
[1745613908842,24.4,151.97,151.89,17.48453215]
[1745613909031,6.576,151.95,151.91,6.5771]
[1745613909541,24.4,151.97,151.89,17.48453215]
[1745613909733,24.4,151.97,151.84,29.59823215]
[1745613909734,24.4,151.97,151.91,17.48453215]
[1745613911138,30.975,151.97,151.91,17.48453215]
[1745613912242,30.975,151.97,151.92,6.5768]
[1745613912645,6.5753,151.96,151.92,6.5768]
[1745613913145,30.975,151.97,151.93,6.5765]
[1745613913741,24.4,151.97,151.94,6.5758]
[1745613913948,24.4,151.97,151.93,17.48453215]
[1745613914446,24.4,151.97,151.94,6.5757]
[1745613914745,24.4,151.97,151.93,17.48453215]
[1745613915142,24.4,151.97,151.94,6.5758]
[1745613915547,24.38,152.0,151.97,6.5745]
[1745613916449,24.38,152.0,151.93,21.48093215]
[1745613917243,30.9535,152.0,151.97,6.5745]
[1745613917449,24.38,152.0,151.95,17.48453215]
[1745613918151,24.38,152.0,151.98,6.5741]
[1745613918349,24.38,152.0,151.95,17.48453215]
[1745613918749,24.38,152.0,151.98,6.5741]
[1745613920150,24.38,152.0,151.99,6.5739]
[1745613921453,24.38,152.0,151.98,6.5743]
[1745613922050,24.38,152.0,151.99,6.5739]
[1745613922550,30.9325,152.03,151.95,41.84453215]
[1745613923550,30.9325,152.03,151.99,6.5737]
[1745613923752,24.36,152.03,151.97,17.48453215]
[1745613924051,24.36,152.08,152.01,17.48453215]
[1745613924247,30.9304,152.08,152.02,4.0214]
[1745613924448,24.36,152.08,152.03,17.48453215]
[1745613925345,24.36,152.08,152.06,6.5706]
[1745613925649,6.5699,152.09,152.03,17.48453215]
[1745613926049,6.5694,152.1,152.06,6.5706]
[1745613926451,24.36,152.11,152.06,6.5706]
[1745613927150,24.36,152.11,152.08,6.5699]
[1745613927353,24.36,152.15,152.07,17.48453215]
[1745613927650,24.36,152.14,152.07,17.48453215]
[1745613928149,24.36,152.14,152.08,6.5698]
[1745613928352,41.84453215,152.14,152.05,17.48453215]
[1745613928953,6.5692,152.1,152.08,6.57]
[1745613929344,41.84453215,152.14,152.08,6.57]
[1745613929646,6.5691,152.11,152.08,6.57]
[1745613930351,6.5691,152.11,152.09,6.5695]
[1745613931553,6.5685,152.12,152.09,6.5695]
[1745613931855,24.36,152.14,152.07,17.48453215]
[1745613932653,24.36,152.14,152.09,6.5696]
[1745613933253,6.5686,152.12,152.09,6.5696]
[1745613933453,24.36,152.14,152.08,6.5699]
[1745613933753,6.5694,152.1,152.05,17.48453215]
[1745613934051,6.5694,152.1,152.07,6.5702]
[1745613934449,6.5694,152.1,152.08,6.57]
[1745613934753,6.5689,152.11,152.05,41.82453215]
[1745613935054,6.5689,152.11,152.08,6.5698]
[1745613935258,24.36,152.14,152.07,17.48453215]
[1745613935953,6.5681,152.13,152.07,17.48453215]
[1745613936354,6.5681,152.13,152.1,6.5689]
[1745613937056,6.5684,152.12,152.1,6.5689]
[1745613937353,24.36,152.14,152.09,6.5695]
[1745613937545,24.36,152.14,152.07,17.48453215]
[1745613938054,24.36,152.14,152.1,6.569]
[1745613938255,24.36,152.14,152.09,17.48453215]
[1745613938646,24.36,152.14,152.11,6.5686]
[1745613939156,30.9277,152.14,152.11,6.5686]
[1745613939753,24.34,152.17,152.09,17.48453215]
[1745613939955,24.34,152.17,152.11,17.48453215]
[1745613940654,24.34,152.17,152.13,17.48453215]
[1745613940855,24.34,152.17,152.16,6.5666]
[1745613941055,30.9052,152.2,152.13,17.48453215]
[1745613941356,30.9052,152.2,152.17,6.5659]
[1745613941561,24.34,152.2,152.15,17.48453215]
[1745613942653,24.34,152.2,152.17,6.5658]
[1745613942849,30.9049,152.2,152.17,6.5658]
[1745613943354,3.8237,152.23,152.19,6.5653]
[1745613943355,6.5642,152.22,152.19,6.5653]
[1745613943560,3.8237,152.23,152.17,17.48453215]
[1745613944060,24.34,152.24,152.17,17.48453215]
[1745613944258,24.34,152.24,152.18,3.8675]
[1745613944655,6.5643,152.22,152.19,6.565]
[1745613945462,6.5643,152.22,152.2,6.5647]
[1745613945761,17.48453215,152.22,152.13,17.48453215]
[1745613945962,17.48453215,152.22,152.17,6.5659]
[1745613946260,17.48453215,152.22,152.13,21.35203215]
[1745613946462,17.48453215,152.22,152.17,6.5661]
[1745613946861,6.5651,152.2,152.17,6.5661]
[1745613947064,30.9051,152.2,152.17,6.5661]
[1745613947361,30.905,152.2,152.17,6.5661]
[1745613947562,24.34,152.2,152.17,6.5661]
[1745613947762,24.34,152.2,152.13,21.35203215]
[1745613948261,30.9051,152.2,152.16,6.5662]
[1745613948564,17.48453215,152.19,152.11,24.34]
[1745613948760,6.5664,152.17,152.13,6.5675]
[1745613948964,6.5664,152.17,152.1,17.48453215]
[1745613949963,6.5664,152.17,152.14,6.5672]
[1745613953166,21.41563215,152.19,152.1,17.48453215]
[1745613953567,3.9311,152.19,152.12,17.48453215]
[1745613953869,24.34,152.2,152.14,17.48453215]
[1745613954568,30.9049,152.2,152.18,6.5657]
[1745613955870,30.9049,152.2,152.17,6.566]
[1745613956668,30.9049,152.2,152.18,6.5657]
[1745613957370,24.34,152.2,152.18,6.5657]
[1745613958069,30.9049,152.2,152.18,6.5657]
[1745613959774,30.9049,152.2,152.17,6.5659]
[1745613960478,6.5653,152.19,152.17,6.5659]
[1745613960772,24.34,152.2,152.18,6.5657]
[1745613961174,30.9051,152.2,152.12,41.80453215]
[1745613961372,24.34,152.2,152.17,6.5658]
[1745613961571,24.34,152.2,152.12,41.80453215]
[1745613961772,17.48453215,152.19,152.15,6.5667]
[1745613961973,17.48453215,152.19,152.12,41.80453215]
[1745613962274,6.566,152.18,152.15,6.5668]
[1745613962671,17.48453215,152.19,152.12,24.32]
[1745613962874,17.48453215,152.17,152.09,28.2052]
[1745613963067,24.32,152.16,152.09,28.2052]
[1745613964378,6.5671,152.15,152.12,6.568]
[1745613964572,24.32,152.16,152.12,6.568]
[1745613965176,24.32,152.16,152.06,41.80453215]
[1745613965177,17.48453215,152.15,152.06,41.80453215]
[1745613965582,17.48453215,152.15,152.12,6.5683]
[1745613965980,17.48453215,152.15,152.11,6.5685]
[1745613966776,17.48453215,152.13,152.02,1.14413467]
[1745613966979,17.48453215,152.09,151.98,25.53713215]
[1745613967172,17.48453215,152.07,151.98,25.53713215]
[1745613967376,17.48453215,152.07,151.98,8.0526]
[1745613967678,17.48453215,152.05,151.98,8.0526]
[1745613967878,24.32,152.04,151.98,8.0526]
[1745613968381,24.32,152.04,151.98,4.0876]
[1745613968680,24.32,152.04,151.94,41.80453215]
[1745613969280,17.48453215,152.03,151.94,17.48453215]
[1745613969579,17.48453215,152.01,151.93,7.9481]
[1745613969781,24.34,152.0,151.93,7.9481]
[1745613969973,30.9136,152.0,151.93,7.9481]
[1745613970173,24.34,152.0,151.93,7.9481]
[1745613970481,24.34,152.0,151.96,6.575]
[1745613970677,24.34,152.0,151.93,7.9481]
[1745613970884,24.34,152.0,151.96,17.48453215]
[1745613972481,24.34,152.0,151.99,6.5739]
[1745613972881,24.34,152.03,152.0,6.5732]
[1745613973083,24.34,152.03,151.98,17.48453215]
[1745613973580,24.34,152.03,152.02,6.5726]
[1745613975483,24.34,152.03,152.01,6.573]
[1745613975889,24.34,152.03,151.96,17.48453215]
[1745613976077,24.34,152.03,152.01,6.5728]
[1745613977179,24.34,152.03,152.02,6.5726]
[1745613978285,24.34,152.03,152.01,6.5729]
[1745613979476,24.34,152.03,152.02,6.5726]
[1745613980785,24.34,152.06,152.0,17.48453215]
[1745613981286,24.34,152.06,152.05,6.5713]
[1745613981781,17.48453215,152.13,152.09,6.5696]
[1745613981977,24.34,152.12,152.09,6.5696]
[1745613982286,24.34,152.12,152.1,6.569]
[1745613983082,24.34,152.12,152.11,6.5687]
[1745613983580,24.34,152.12,152.04,17.48453215]
[1745613984487,24.34,152.12,152.06,17.48453215]
[1745613985188,24.34,152.12,152.03,3.9616]
[1745613985490,17.48453215,152.11,152.03,3.9616]
[1745613985691,6.5694,152.1,152.07,6.5704]
[1745613986789,6.5694,152.1,152.08,6.57]
[1745613987291,24.05353215,152.11,152.08,6.57]
[1745613988791,6.569,152.11,152.08,6.57]
[1745613989390,6.5692,152.1,152.07,6.5703]
[1745613989992,6.57,152.09,152.03,3.9616]
[1745613990389,24.34,152.08,152.03,3.9616]
[1745613990692,24.34,152.08,152.06,6.5706]
[1745613991592,24.34,152.08,152.03,3.9616]
[1745613992289,24.34,152.08,152.07,6.5705]
[1745613992489,6.569,152.11,152.04,17.48453215]
[1745613992794,30.909,152.11,152.08,6.5698]
[1745613993093,6.5693,152.1,152.04,17.48453215]
[1745613993292,6.5693,152.1,152.07,6.5702]
[1745613993493,6.5693,152.1,152.04,17.48453215]
[1745613993993,30.9089,152.11,152.08,6.57]
[1745613995291,24.34,152.11,152.06,17.48453215]
[1745613996292,24.34,152.11,152.1,6.5692]
[1745613997094,24.34,152.11,152.09,6.5695]
[1745613997294,24.34,152.11,152.05,24.34]
[1745613997496,24.34,152.11,152.04,17.48453215]
[1745613997794,30.9088,152.11,152.04,17.48453215]
[1745613997991,30.9088,152.11,152.08,6.5698]
[1745613998399,6.5694,152.1,152.07,6.5703]
[1745613998607,24.34,152.11,152.04,17.48453215]
[1745613999605,30.909,152.11,152.08,6.5698]
[1745614000007,24.34,152.11,152.08,6.5698]
[1745614000506,24.34,152.11,152.09,6.5696]
[1745614001205,24.34,152.11,152.04,17.48453215]
[1745614002408,30.9089,152.11,152.08,6.5697]
[1745614002705,30.9089,152.11,152.04,17.48453215]
[1745614003006,30.9089,152.11,152.08,6.5698]
[1745614003608,6.5692,152.1,152.08,6.5698]
[1745614003808,24.34,152.11,152.09,6.5696]
[1745614004009,24.34,152.11,152.04,17.48453215]
[1745614004305,30.909,152.11,152.08,6.5698]
[1745614005205,24.34,152.11,152.09,6.5696]
[1745614005409,24.34,152.11,152.04,17.48453215]
[1745614005810,24.34,152.11,152.09,6.5694]
[1745614006009,24.34,152.11,152.04,17.48453215]
[1745614006710,30.909,152.11,152.08,6.5698]
[1745614007111,30.909,152.11,152.04,17.48453215]
[1745614007410,24.34,152.11,152.04,17.48453215]
[1745614008112,24.34,152.11,152.1,6.5692]
[1745614008507,24.34,152.11,152.04,17.48453215]
[1745614009014,24.34,152.11,152.09,6.5694]
[1745614009311,24.34,152.11,152.04,17.48453215]
[1745614009616,24.34,152.11,152.08,6.5698]
[1745614009806,30.909,152.11,152.08,6.5698]
[1745614010214,30.909,152.11,152.09,6.5695]
[1745614011213,24.34,152.11,152.04,17.48453215]
[1745614011409,24.34,152.11,152.06,17.48453215]
[1745614011814,24.34,152.11,152.09,6.5694]
[1745614012414,30.9091,152.11,152.08,6.5699]
[1745614012614,24.34,152.11,152.04,17.48453215]
[1745614013012,6.5694,152.1,152.07,6.5702]
[1745614013212,6.5694,152.1,152.04,17.48453215]
[1745614013716,6.5696,152.09,152.04,17.48453215]
[1745614014118,6.5696,152.09,152.06,6.5705]
[1745614014615,6.5696,152.09,152.03,21.3768654]
[1745614015716,6.5696,152.09,152.07,6.5705]
[1745614016917,6.57,152.08,152.03,3.9616]
[1745614017112,17.4152654,152.1,152.02,3.7729]
[1745614017312,21.3522654,152.1,152.02,3.7729]
[1745614017513,6.5702,152.08,152.05,6.571]
[1745614017816,21.3522654,152.1,152.05,6.571]
[1745614019217,6.5703,152.08,152.05,6.571]
[1745614019418,24.32,152.07,152.06,6.5708]
[1745614020520,24.32,152.1,152.08,6.5697]
[1745614020709,24.32,152.1,152.03,17.4152654]
[1745614020909,41.7352654,152.1,152.02,3.7729]
[1745614021109,6.5702,152.08,152.02,3.7729]
[1745614021818,6.5705,152.07,152.02,3.7729]
[1745614022018,41.7352654,152.1,152.02,3.7729]
[1745614022218,41.7352654,152.1,152.05,6.5711]
[1745614022619,41.7352654,152.1,152.02,3.7729]
[1745614023119,6.5702,152.08,152.02,3.7729]
[1745614023321,17.71900248,152.08,152.03,11.14880248]
[1745614023924,11.14880248,152.08,152.03,11.14880248]
[1745614024112,11.14880248,152.08,152.06,6.5706]
[1745614024615,24.32,152.1,152.03,11.14880248]
[1745614024819,24.32,152.1,152.07,11.14880248]
[1745614025313,24.32,152.1,152.09,6.5696]
[1745614025812,24.32,152.1,152.05,11.14880248]
[1745614026017,24.32,152.1,152.08,6.5697]
[1745614026518,30.8895,152.1,152.08,6.5697]
[1745614027219,24.32,152.1,152.08,6.5697]
[1745614027421,24.32,152.1,152.09,6.5696]
[1745614029723,24.32,152.1,152.08,6.5699]
[1745614030222,24.32,152.1,152.09,6.5696]
[1745614032026,24.32,152.1,152.06,11.14880248]
[1745614032323,35.46880248,152.1,152.06,11.14880248]
[1745614032523,42.03820248,152.1,152.07,6.5703]
[1745614032822,35.46880248,152.1,152.07,6.5703]
[1745614033322,42.03820248,152.1,152.07,6.5703]
[1745614033523,11.14880248,152.08,152.03,11.14880248]
[1745614033919,24.32,152.1,152.07,6.5702]
[1745614034217,35.46880248,152.1,152.07,6.5702]
[1745614034423,42.03840248,152.1,152.07,6.5702]
[1745614034919,35.46880248,152.1,152.08,6.57]
[1745614035127,24.32,152.1,152.07,11.14880248]
[1745614035418,24.32,152.13,152.09,11.14880248]
[1745614035624,30.8879,152.13,152.1,6.5689]
[1745614035825,24.32,152.13,152.09,11.14880248]
[1745614036625,30.8881,152.13,152.1,6.5689]
[1745614036927,30.8881,152.13,152.09,11.14880248]
[1745614037119,30.8881,152.13,152.1,6.5689]
[1745614037319,24.32,152.13,152.09,11.14880248]
[1745614037619,24.32,152.13,152.11,11.14880248]
[1745614037823,24.32,152.13,152.12,6.5683]
[1745614044231,24.3,152.16,152.11,11.14880248]
[1745614044529,24.3,152.16,152.13,11.14880248]
[1745614044731,24.3,152.16,152.15,6.567]
[1745614044935,24.3,152.16,152.13,11.14880248]
[1745614045232,24.3,152.16,152.14,6.5672]
[1745614045832,24.3,152.16,152.13,17.71650248]
[1745614046033,24.3,152.16,152.13,11.14880248]
[1745614046435,6.5673,152.15,152.13,17.71660248]
[1745614046934,42.01570248,152.16,152.13,17.71660248]
[1745614047233,42.01570248,152.16,152.14,6.5674]
[1745614049833,42.01570248,152.16,152.13,17.71650248]
[1745614050234,42.01570248,152.16,152.13,11.14880248]
[1745614050533,30.8669,152.16,152.13,11.14880248]
[1745614050736,24.3,152.16,152.15,6.567]
[1745614057938,24.3,152.16,152.15,17.71580248]
[1745614058138,24.3,152.18,152.17,6.5661]
[1745614058541,24.3,152.18,152.15,11.14880248]
[1745614058839,24.3,152.18,152.16,6.5662]
[1745614059640,24.3,152.18,152.15,11.14880248]
[1745614059641,24.3,152.18,152.17,6.5662]
[1745614060039,24.3,152.18,152.17,17.71500248]
[1745614060240,24.3,152.21,152.2,6.5649]
[1745614060436,24.3,152.24,152.19,11.14880248]
[1745614060642,24.3,152.24,152.21,11.14880248]
[1745614061043,24.3,152.24,152.23,17.71220248]
[1745614061947,24.3,152.24,152.23,6.5634]
[1745614062142,24.3,152.24,152.22,17.71270248]
[1745614062447,24.3,152.24,152.18,3.8749]
[1745614062641,24.3,152.24,152.21,11.14880248]
[1745614062944,24.3,152.24,152.21,17.71300248]
[1745614064441,24.3,152.24,152.21,11.14880248]
[1745614065047,515.07050248,152.28,152.24,6.5629]
[1745614065246,35.44880248,152.28,152.25,11.14880248]
[1745614065446,24.3,152.28,152.25,11.14880248]
[1745614065647,24.3,152.28,152.25,17.71120248]
[1745614066943,11.14880248,152.27,152.22,11.14880248]
[1745614067245,24.3,152.28,152.22,11.14880248]
[1745614067445,11.14880248,152.27,152.24,6.5629]
[1745614067847,11.14880248,152.27,152.25,6.5627]
[1745614069550,6.5619,152.27,152.24,17.71180248]
[1745614069849,6.5619,152.27,152.19,4.0787]
[1745614069850,35.44880248,152.28,152.23,11.14880248]
[1745614070947,42.01050248,152.28,152.25,6.5625]
[1745614071251,35.44880248,152.28,152.26,6.5622]
[1745614071746,35.44880248,152.28,152.12,1.14310115]
[1745614071947,11.14880248,152.16,152.12,1.14310115]
[1745614072147,11.14880248,152.16,152.11,14.99010248]
[1745614072354,11.14880248,152.16,152.13,6.5677]
[1745614072943,11.14880248,152.16,152.12,6.5681]
[1745614073151,6.5673,152.15,152.11,11.14880248]
[1745614073351,11.14880248,152.16,152.07,7.6088]
[1745614073551,11.14880248,152.14,152.09,17.71810248]
[1745614073851,24.28,152.13,152.09,17.71810248]
[1745614074657,24.28,152.13,152.1,6.569]
[1745614075856,24.28,152.13,152.11,6.5687]